Cogmind - Beta 10.2 @@@ ROGUE MODE // 2020.12.31 @ 10:26:09 Player: SureStep Result: Self-destructed Performance ------------- Evolutions (2) 1000 Regions Visited (3) 600 Robots Destroyed (108) 540 Value Destroyed (2644) 2644 Prototype IDs (6) 120 Alien Tech Used (0) 0 Bonus (251) 251 TOTAL SCORE: 5155 Bonus ------- High Alert Combat Kills 251 Cogmind --------- Core Integrity 313/550 Matter 300/300 Energy 160/160 System Corruption 0% Temperature Cool (42) Movement Core (250) Ox4 Location -8/Materials Parts ------- > --- POWER (1) -------- Light Nuclear Core > --- PROPULSION (4) --- (None) > --- UTILITY (4) ------ Medium Storage Unit > --- WEAPON (2) ------- (None) > --- INVENTORY (8) ---- Heavy Ion Engine Xenon Bombardment Thruster Xenon Bombardment Thruster Xenon Bombardment Thruster Xenon Bombardment Thruster Improved Heat Sink Large Battery (300) Peak State ------------ > --- POWER ------------ Improved Ion Engine > --- PROPULSION ------- Xenon Bombardment Thruster Xenon Bombardment Thruster Xenon Bombardment Thruster Xenon Bombardment Thruster > --- UTILITY ---------- Heat Shielding Improved Heat Sink Medium Storage Unit Large Battery > --- WEAPON ----------- Heavy EM Pulse Gun Light EM Pulse Cannon > --- INVENTORY -------- Improved Ion Engine Improved Heat Sink Large Battery Shock Rifle [Rating: 29] Favorites ----------- Power Ion Engine Engine Ion Engine Power Core Light Nuclear Core Propulsion Wheel Wheel Wheel Flight Unit Cesium-ion Thruster Utility Medium Storage Unit Device Improved Heat Sink Storage Medium Storage Unit Processor Targeting Computer Weapon Heavy EM Pulse Gun Energy Gun Heavy EM Pulse Gun Energy Cannon Particle Cannon Ballistic Gun Assault Rifle Launcher Grenade Launcher Build | -11 -10 -9 -8 ------- Run | Scr Mat Mat Mat Slots Evolved 4 | . . 2 2 Power . | . . . . Propulsion 2 | . . 1 1 Utility 2 | . . 1 1 Weapon . | . . . . Parts Attached 85 | 7 19 32 27 Power 12 | 1 2 3 6 Engine 10 | 1 2 3 4 Core 2 | . . . 2 Reactor . | . . . . Propulsion 38 | 3 7 14 14 Treads . | . . . . Leg . | . . . . Wheel 30 | 3 7 10 10 Hover . | . . . . Flight 8 | . . 4 4 Utility 16 | 1 5 7 3 Device 11 | . 4 4 3 Storage 4 | 1 1 2 . Processor 1 | . . 1 . Hackware . | . . . . Protection . | . . . . Artifact . | . . . . Weapon 19 | 2 5 8 4 Energy Gun 11 | 1 2 5 3 Energy Cannon 6 | . 2 3 1 Ballistic Gun 1 | 1 . . . Ballistic Cannon . | . . . . Launcher 1 | . 1 . . Special Weapon . | . . . . Impact Weapon . | . . . . Slashing Weapon . | . . . . Piercing Weapon . | . . . . Special Melee Weapon . | . . . . Unidentified Prototypes . | . . . . Parts Lost 33 | . 4 9 20 Power 3 | . . 1 2 Propulsion 14 | . 1 4 9 Utility 6 | . 1 2 3 Weapon 10 | . 2 2 6 Highest Loss Streak 7 | . 1 4 7 Average Slot Usage (%) 94 | . 95 98 81 Engine 11 | . 13 10 7 Wheel 24 | . 26 21 25 Flight 5 | . . 10 . Device 12 | . 11 12 12 Storage 16 | . 14 16 18 Processor 1 | . . 3 . Energy Gun 11 | . 12 10 12 Energy Cannon 8 | . 10 8 4 Launcher 2 | . 4 2 . Naked Turns . | . . . . Heaviest Build 27 | 11 20 25 27 Greatest Support 40 | 26 26 30 40 Greatest Overweight (x) 7 | . 1 7 2 Average Overweight (x) . | . . . . Largest Inventory Capacity 8 | 6 8 8 8 Average Capacity 7 | 5 6 8 8 Most Carried 8 | 2 8 8 8 Average Carried 6 | . 5 7 6 Final Capacity 8 | 6 8 8 8 Final Carried 8 | . 8 5 7 Class Distribution -------------------- 71% | Scavenger-Mutant 28% | Mutant Dominant Class ---------------- Scavenger-Mutant | -10/Materials Scavenger-Mutant | -9/Materials Scavenger-Mutant | -8/Materials Resources | -11 -10 -9 -8 ----------- Run | Scr Mat Mat Mat Matter Collected 1265 | 285 307 451 222 Remotely . | . . . . Salvage Created 3659 | 97 853 2110 599 Parts 261 | 7 80 134 40 Haulers Intercepted 5 | . 2 2 1 Recyclers Shooed 2 | . . 2 . Parts Field Recycled . | . . . . Retrieved Matter . | . . . . Parts Self-Destructed . | . . . . Prevented . | . . . . Kills | -11 -10 -9 -8 ------- Run | Scr Mat Mat Mat Combat Hostiles Destroyed 66 | . 16 38 12 Guns 27 | . 4 16 7 Cannons 25 | . 7 15 3 AOE 14 | . 5 7 2 Classes Destroyed 13 | 2 7 2 2 Worker 6 | . 2 2 2 Builder 11 | . 6 4 1 Tunneler 2 | 1 1 . . Hauler 5 | . 2 2 1 Recycler 4 | 1 . 3 . Operator 4 | . 1 3 . Watcher 10 | . 3 4 3 Swarmer 15 | . 5 7 3 Grunt 35 | . 11 20 4 Brawler 1 | . . 1 . Duelist 1 | . . . 1 Sentry 13 | . . 10 3 Hunter 1 | . . . 1 Best Kill Streak 8 | 2 3 8 4 Combat Bots Only 7 | . 3 7 4 Max Kills in Single Turn 2 | 1 2 2 2 Gunslinging . | . . . . Exploded 2 | . 2 2 2 Melee . | . . . . Uniques/NPCs Destroyed . | . . . . Combat | -11 -10 -9 -8 -------- Run | Scr Mat Mat Mat Damage Taken 2638 | . 442 1003 1193 Core 520 | . 90 193 237 Absorbed by Shields . | . . . . Core Remaining (%) 71 | 100 64 51 . Volleys Fired 250 | 5 66 125 54 Largest 2 | 2 2 2 2 Hottest 136 | 60 100 136 130 Shots Fired 431 | 10 115 219 87 Gun 252 | 10 56 122 64 Cannon 153 | . 47 83 23 Launcher 26 | . 12 14 . Special . | . . . . Kinetic 11 | 5 6 . . Thermal 163 | . 47 83 33 Explosive 26 | . 12 14 . Electromagnetic 231 | 5 50 122 54 Robot Hit Streak 13 | 4 13 10 9 Robot Miss Streak 7 | 3 5 5 7 Penetration Max . | . . . . Secondary Targets 2 | . . 2 . Max Gunslinging Chain 1 | . . 1 . Shots Hit Robots 261 | 6 59 130 66 Core Hits 157 | 3 41 65 48 Critical Hits 2 | . 1 1 . Critical Kills 2 | . 1 1 . Critical Parts Destroyed . | . . . . Melee Attacks . | . . . . Impact . | . . . . Slashing . | . . . . Piercing . | . . . . Sneak Attacks . | . . . . Combat Hostiles . | . . . . Follow-up Attacks . | . . . . Damage Inflicted 5912 | 95 1499 2836 1482 Guns 2497 | 95 507 1248 647 Cannons 1672 | . 405 943 324 Explosions 1743 | . 587 645 511 Melee . | . . . . Ramming . | . . . . Kinetic 91 | 39 52 . . Thermal 2275 | . 405 1195 675 Explosive 1079 | . 587 393 99 Electromagnetic 2467 | 56 455 1248 708 Impact . | . . . . Slashing . | . . . . Piercing . | . . . . Highest Corruption 3 | . 2 3 . Average Corruption 1 | . 1 2 . Corruption Purged . | . . . . Effects 6 | . 6 . . Message Errors 2 | . 2 . . Energy Discharges 1 | . 1 . . Data Loss (minor) 2 | . 2 . . Targeting Errors 1 | . 1 . . Overload Shots . | . . . . Overflow Damage 309 | . 26 45 238 Projectiles 16 | . 6 10 . Explosions 293 | . 20 35 238 Melee . | . . . . Knockbacks . | . . . . Impact . | . . . . Kinetic . | . . . . Secondary . | . . . . Self-Inflicted Damage 377 | . 42 71 264 Shots 11 | . 2 3 6 Rammed . | . . . . Targets Rammed . | . . . . Kicked . | . . . . Crushed . | . . . . Highest Temperature 282 | . 123 282 63 Average Temperature 47 | . 22 71 16 Received Heat Transfer 564 | . 156 255 153 Effects 1 | . . 1 . Energy Bleed 1 | . . 1 . Siege Activations . | . . . . Robots Corrupted . | . . . . Combat Hostiles . | . . . . Parts Fried 7 | . . 2 5 Impact Corruptions . | . . . . Robots Melted . | . . . . Combat Hostiles . | . . . . Parts Melted 7 | . 1 5 1 Heat Transferred 3578 | . 851 2002 725 Parts Sabotaged . | . . . . Parts Stolen . | . . . . Parts Stripped . | . . . . Power Chain Reactions 9 | . 1 5 3 Missiles Intercepted . | . . . . Alert | -11 -10 -9 -8 ------- Run | Scr Mat Mat Mat Peak Influence 780 | 10 384 780 643 Initial 329 | . 6 114 329 Average 277 | 4 141 315 487 Maximum Alert Level 3 | . 1 3 2 Low Security (%) 47 | 100 76 40 . Level 1 27 | . 23 34 15 Level 2 18 | . . 12 84 Level 3 5 | . . 11 . Level 4 . | . . . . Level 5 . | . . . . High Security . | . . . . Max Security . | . . . . Squads Dispatched 15 | . 6 8 1 Investigation 7 | . 4 3 . Extermination . | . . . . Reinforcement 8 | . 2 5 1 Assault . | . . . . Garrison . | . . . . Intercept . | . . . . Construction Impeded 3 | . . 2 1 Haulers Reinforced . | . . . . Stealth | -11 -10 -9 -8 --------- Run | Scr Mat Mat Mat Distress Signals 11 | . 2 7 2 Communications Jammed . | . . . . Distress Signals . | . . . . Times Spotted 112 | . 31 59 22 Peak Tracking Total 6 | . 5 6 5 Tactical Retreats 12 | . 6 5 1 Traps | -11 -10 -9 -8 ------- Run | Scr Mat Mat Mat Traps Triggered 7 | . 4 3 . Indirectly . | . . . . Trap Hack Attempts . | . . . . Triggered . | . . . . Disarmed . | . . . . Reprogrammed . | . . . . Reused . | . . . . Traps Extracted . | . . . . Installed . | . . . . Triggered . | . . . . Machines | -11 -10 -9 -8 ---------- Run | Scr Mat Mat Mat Machines Disabled 13 | . 4 4 5 Max in Single Turn 2 | . 1 1 2 Machines Sabotaged . | . . . . Garrisons Compromised . | . . . . Overloaded Fab Kills . | . . . . Fab Network Shutdowns . | . . . . Hacking | -11 -10 -9 -8 --------- Run | Scr Mat Mat Mat Machines Accessed 16 | . 6 9 1 Terminals 14 | . 6 7 1 Fabricators . | . . . . Repair Stations . | . . . . Recycling Units . | . . . . Scanalyzers 2 | . . 2 . Garrison Access . | . . . . Total Hacks 55 | . 16 35 4 Successful 31 | . 6 24 1 Failed 24 | . 10 11 3 Catastrophic 5 | . 1 3 1 Database Lockouts . | . . . . Manual . | . . . . Terminals 44 | . 16 24 4 Fabricators . | . . . . Repair Stations . | . . . . Recycling Units . | . . . . Scanalyzers 11 | . . 11 . Garrison Access . | . . . . Terminal Hacks 21 | . 6 14 1 Prototype ID Bank 4 | . 1 2 1 Branch Access Points 1 | . 1 . . Emergency Access Points 1 | . . 1 . Terminal Index 1 | . . 1 . Unreport Threat 2 | . 1 1 . Locate Traps 2 | . 1 1 . Security Status 2 | . 1 1 . Surveillance Status 1 | . . 1 . Investigation Status 1 | . . 1 . Reinforcement Status 1 | . . 1 . Hauler Manifests 3 | . 1 2 . Registered Components 1 | . . 1 . Zone Layout 1 | . . 1 . Fabricator Hacks . | . . . . Repair Station Hacks . | . . . . Recycling Unit Hacks . | . . . . Scanalyzer 10 | . . 10 . Insert Component 5 | . . 5 . Analyze 5 | . . 5 . Garrison Access Hacks . | . . . . Unauthorized Hacks . | . . . . Terminals . | . . . . Fabricators . | . . . . Repair Stations . | . . . . Recycling Units . | . . . . Scanalyzers . | . . . . Garrison Access . | . . . . Data Cores Recovered 1 | . . 1 . Used . | . . . . Hacking Detections 13 | . 5 7 1 Full Trace Events 8 | . 3 4 1 Feedback Events 1 | . 1 . . Corruption 1 | . 1 . . Feedback Blocked . | . . . . Robot Schematics Acquired . | . . . . Robots Built . | . . . . Matter . | . . . . Time . | . . . . Total Robot Build Rating . | . . . . Part Schematics Acquired 5 | . . 5 . Parts Built . | . . . . Matter . | . . . . Time . | . . . . Total Part Build Rating . | . . . . Parts Repaired . | . . . . Time . | . . . . Parts Recycled . | . . . . Recycled Matter . | . . . . Retrieved Matter . | . . . . Retrieved Components . | . . . . Parts Scanalyzed 5 | . . 5 . Part Schematics Acquired 5 | . . 5 . Parts Damaged 1 | . . 1 . Bothacking | -11 -10 -9 -8 ------------ Run | Scr Mat Mat Mat Used RIF Installer . | . . . . Robots Hacked . | . . . . Non-combat . | . . . . Combat . | . . . . Robot Hacks Applied . | . . . . Relay Couplers Released . | . . . . Robots Rewired . | . . . . Allies Hacked . | . . . . Hacks Repelled . | . . . . Allies | -11 -10 -9 -8 -------- Run | Scr Mat Mat Mat Total Allies . | . . . . Largest Group . | . . . . Highest-Rated Group . | . . . . Highest-Rated Ally . | . . . . Total Orders . | . . . . Ally Attacks . | . . . . Total Damage . | . . . . Kills . | . . . . Allies Corrupted . | . . . . Allies Melted . | . . . . Intel | -11 -10 -9 -8 ------- Run | Scr Mat Mat Mat Robot Analysis Total . | . . . . Derelict Logs Recovered . | . . . . Drone Launches . | . . . . Drone Recoveries . | . . . . Exploration | -11 -10 -9 -8 ------------- Run | Scr Mat Mat Mat Turns Passed 3681 | 68 1221 1859 533 Spaces Moved 2881 | 47 971 1504 359 Core 13 | 6 6 1 . Treads . | . . . . Legs . | . . . . Wheels 2471 | 41 965 1106 359 Hover . | . . . . Flight 397 | . . 397 . Fastest Speed 34 | 50 80 34 80 Average Speed 85 | 80 81 89 83 Slowest Speed 400 | 90 100 400 100 Overloaded Moves . | . . . . Propulsion Burnouts . | . . . . Robots Hopped . | . . . . Cave-ins Triggered . | . . . . Exploration Rate (%) 54 | 4 99 96 20 Regions Visited 3 Branch Regions . Pre-discovered Areas . | . . . . Known Exits Taken . | . . . . Unknown Exits Taken 3 | 1 1 1 . Scrap Searched . | . . . . Spaces Dug . | . . . . Terrain Destroyed 251 | . 77 78 96 Melee . | . . . . Projectile . | . . . . AOE 251 | . 77 78 96 Terrain Rammed . | . . . . Walls Destroyed . | . . . . Machines Disabled . | . . . . Actions | -11 -10 -9 -8 --------- Run | Scr Mat Mat Mat Total 3687 | 67 1291 1815 514 Wait 309 | . 185 93 31 Move 2878 | 46 970 1503 359 Hop . | . . . . Pick Up 93 | 7 30 30 26 Fast Attach . | . . . . Attach 81 | 7 18 30 26 Detach 25 | 1 7 11 6 Swap 4 | . 1 2 1 Drop 47 | 1 14 21 11 Fire 250 | 5 66 125 54 Melee . | . . . . Ram . | . . . . Kick . | . . . . Crush . | . . . . Escape Stasis . | . . . . Rewire . | . . . . Trap . | . . . . Miscellaneous . | . . . . Route ------- -11/Scrapyard -10/Materials (discovered 4 exits: *Mat x3 / *Min) -9/Materials (discovered 4 exits: *Mat x3 / [*Min]) -8/Materials History --------- Turn | Location | Event 17 | -11/Scrapyard | Discovered new exit (range 15) 69 | -11/Scrapyard | Entered Materials 307 | -10/Materials | Build established: Mutant 445 | -10/Materials | Discovered new exit (range 16) 613 | -10/Materials | Build established: Scavenger-Mutant 713 | -10/Materials | Identified exit to Mines 850 | -10/Materials | Discovered new exit (range 7) 1083 | -10/Materials | Discovered new exit (range 16) 1290 | -10/Materials | Entered another Materials area 1290 | -9/Materials | Evolved 2 slots: Propulsion x1, Utility x1 1453 | -9/Materials | Discovered new exit (range 7) 2009 | -9/Materials | Build established: Mutant 2036 | -9/Materials | Discovered new exit (range 12) 2046 | -9/Materials | Destroyed 7 combat bots 2329 | -9/Materials | Lost 4 parts (3n1w) 2562 | -9/Materials | Discovered new exit (range 15) 2574 | -9/Materials | Build established: Scavenger-Mutant 2996 | -9/Materials | Discovered new exit (range 16) 3149 | -9/Materials | Entered another Materials area 3149 | -8/Materials | Evolved 2 slots: Propulsion x1, Utility x1 3377 | -8/Materials | Lost 3 parts (1n1u1w) 3516 | -8/Materials | Lost 4 parts (2n2w) 3675 | -8/Materials | Lost 3 parts (1p1n1w) 3682 | -8/Materials | Self-destructed Last Messages --------------- Penetrated by Slug. H-55 Commando destroyed. Acquired Wheel. Acquired 10 matter. Acquired Lgt. Nuclear Core. Acquired 10 matter. R-06 Scavenger collects Flight Unit. Wheel destroyed. Spread Laser destroyed. Fusion Modulator explodes. Destroyed Particle Gun. G-47 Trooper destroyed. Lrg. Battery destroyed. Destroyed Lrg. Battery. Imp. Heat Sink destroyed. Destroyed Imp. Heat Sink. Wheel destroyed. Destroyed Wheel. Fusion Modulator explodes. G-47 Trooper destroyed. Map ----- +----------------------------------------------------+ | ?????????????????????????# #??????? | | ??????????###+######+######+#####??????? | | ????????? #???????? | | ????????? #???????? | | ????????? #???????? | | ????????????# ########## #####???????? | | ???????????????????????#% [#???????????? | | ???????????????????????#=%%#???????????? | | ???????????????????????# [*#???????????? | | ???????????????????????# = #???????????? | | ???????????????????????#%= ###########?? | | ???????????????????????# # = % #?? | | ???????????????????##### # #?? | | ???????????????????#== # #?? | | ???????????????????#== *# #?? | | ???????????????????# + """ """ #?? | | ???????????????????# # """ """ #?? | | ???????????????????#!! # """ """ #?? | | ???????????????????#!! t # #?? | | ???????????????????##### = ############? | | ???????????????????????# % # # | | ???????????????????????# u# # | | ??????????????????????## + # | | ??????????# #########; % # # | | ?????????? ! ; # | | ?????????????????####;;; @ ;;;;;#####? | | ?????? ?????????????# ;;; ;;;;#????? | | ?????? ###########??# ; ;#???? | | ?????? # *#?# ; ;#???? | | ?????# # ####;;! ;#???? | | ?????# # # ;%% ;#???? | | ?????# # """ """ + ;== ;#???? | | ?????+ # """ """ # ; ##???? | | ?????# # """ """ # # #????? | | ?????# # ## ####+#;;;;;#####??? | | ?????# # ## #?## # ##?? | | ?????# ############ #?## # ###? | | ###### ############u #?## # # #? | | * = #### # #? | | ????# ***!*% + # #? | | ????#" *%%!%=* # # # | | ????#T """ = #######+# + #? | | ????#" """ ## % = *# # #? | | ????# """ ## ""!# ##### # # # #? | | ##### """ ## T" # #? | | ! # + "" # # #####? | | " + ## ###+##########??? | | T #+######### """ # #??? | | " =#!%! !## """ # #??? | | #== ![==%# """ # #??? | +----------------------------------------------------+ Best States ------------- Heat Dissipation 45 Energy Generation 14 Energy Capacity 580 Matter Stores 300 Matter Capacity 300 Sight Range 16 Terrain Scan Density 10 Heat Shielding 75 Evasion (%) 47 Targeting Accuracy 5 Item Schematics ----------------- Heat Shielding | -9/Materials | Scanalyzed Lrg. Battery | -9/Materials | Scanalyzed Imp. Heat Sink | -9/Materials | Scanalyzed Hvy. EM Pulse Gun | -9/Materials | Scanalyzed Cesium-ion Thruster | -9/Materials | Scanalyzed Robot Schematics ------------------ None Fabricated ------------ Nothing Alien Tech Used ----------------- None Achievements -------------- None Challenges ------------ None Game ------ Seed SmartbombLargeGravjet Manual? 0 Play Time 01:18:51 Cumulative 32.9 hours Start 2020.12.30 @ 23:02:32 End 2020.12.31 @ 10:26:09 Sessions 5 Manual Loads 0 Difficulty Rogue Special Mode None Game No. 41 Rogue 41 Adventurer 0 Explorer 0 Win Type - Total 0 Types 0/0/0/0/0/0/0/0/0 Lore% 12 Gallery% 17 Achievement% 15 Wizard Run 0 Options --------- ASCII 0 Keyboard 0 Movement Mouse Keybinds 0 Fullscreen 1 Font 18/SmallcapsGlow Map View 76x50 Tactical HUD 0 Map Filters NONE Filters NONE Steam 1 RUN: f1a687ee-9df5-4df0-92c8-a0e77c51e2e8